bitfinex/quotes_BTCUSD_20241027
["timestamp","ask_amount","ask_price","bid_price","bid_amount"]
[1730071519342,0.45166548,68208.0,68207.0,0.001658]
[1730071519548,0.67786929,68208.0,68207.0,0.001658]
[1730071520711,0.8293731,68208.0,68207.0,0.001658]
[1730071521152,0.8343731,68208.0,68207.0,0.001658]
[1730071522436,0.8393731,68208.0,68207.0,0.001658]
[1730071524735,0.93040084,68208.0,68207.0,0.001658]
[1730071525381,0.50681381,68208.0,68207.0,0.001658]
[1730071525585,0.68786929,68208.0,68207.0,0.001658]
[1730071525797,0.69386929,68208.0,68207.0,0.001658]
[1730071526019,0.68886929,68208.0,68207.0,0.001658]
[1730071526474,0.69886929,68208.0,68207.0,0.001658]
[1730071526715,0.69286929,68208.0,68207.0,0.001658]
[1730071526893,0.68586929,68208.0,68207.0,0.001658]
[1730071527340,0.69286929,68208.0,68207.0,0.001658]
[1730071529506,0.73670511,68208.0,68207.0,0.001658]
[1730071530295,0.69286929,68208.0,68207.0,0.001658]
[1730071530500,0.73670511,68208.0,68207.0,0.001658]
[1730071530700,0.69286929,68208.0,68207.0,0.001658]
[1730071532136,0.7367236,68208.0,68207.0,0.001658]
[1730071532369,0.69286929,68208.0,68207.0,0.001658]
[1730071532540,0.7367236,68208.0,68207.0,0.001658]
[1730071532909,0.80979049,68208.0,68207.0,0.001658]
[1730071533159,0.80979049,68208.0,68194.0,0.001648]
[1730071533160,0.373,68196.0,68194.0,0.001648]
[1730071533357,0.89647723,68196.0,68194.0,0.001648]
[1730071533583,0.85219529,68196.0,68194.0,0.001648]
[1730071534679,0.67013981,68196.0,68194.0,0.001648]
[1730071534886,0.64713981,68196.0,68194.0,0.001648]
[1730071535324,0.64813981,68196.0,68194.0,0.001648]
[1730071535727,0.64713981,68196.0,68194.0,0.001648]
[1730071536581,0.77950494,68196.0,68194.0,0.001648]
[1730071536804,0.79026111,68196.0,68194.0,0.001648]
[1730071537717,0.79026111,68196.0,68195.0,0.441568]
[1730071537917,0.79026111,68196.0,68195.0,0.45750605]
[1730071556420,0.83414068,68196.0,68195.0,0.45750605]
[1730071556843,0.83414068,68196.0,68195.0,0.441568]
[1730071557251,0.83414068,68196.0,68195.0,0.45753506]
[1730071558288,0.79026111,68196.0,68195.0,0.45753506]
[1730071558701,0.74910556,68196.0,68195.0,0.45753506]
[1730071559393,0.81492492,68196.0,68195.0,0.45753506]
[1730071560342,0.74910556,68196.0,68195.0,0.45753506]
[1730071560758,0.96895504,68196.0,68195.0,0.45753506]
[1730071561130,1.00613424,68196.0,68195.0,0.45753506]
[1730071561982,0.91492466,68196.0,68195.0,0.45753506]
[1730071562193,1.00613424,68196.0,68195.0,0.45753506]
[1730071562661,0.91492466,68196.0,68195.0,0.45753506]
[1730071562871,1.00613424,68196.0,68195.0,0.45753506]
[1730071563834,1.27754382,68196.0,68195.0,0.25517385]
[1730071564065,1.27754382,68196.0,68195.0,0.19790609]
[1730071564271,1.27754382,68196.0,68195.0,0.14428546]
[1730071564498,1.18833424,68196.0,68195.0,0.14593146]
[1730071564741,1.18833424,68196.0,68195.0,0.05794746]
[1730071564974,0.274638,68195.0,68194.0,0.00093946]
[1730071565213,0.67514181,68195.0,68194.0,0.00093946]
[1730071565436,0.85756097,68195.0,68194.0,0.00093946]
[1730071565655,0.96751178,68195.0,68194.0,0.00093946]
[1730071566128,0.85756097,68195.0,68194.0,0.00093946]
[1730071566840,0.96751178,68195.0,68194.0,0.00093946]
[1730071567523,0.97550509,68195.0,68194.0,0.00093946]
[1730071567760,0.86956097,68195.0,68194.0,0.00093946]
[1730071568693,0.92947092,68195.0,68194.0,0.00093946]
[1730071570999,0.81954635,68195.0,68194.0,0.00093946]
[1730071572397,0.97005016,68195.0,68194.0,0.00093946]
[1730071573508,0.81954635,68195.0,68194.0,0.00093946]
[1730071573707,0.92947015,68195.0,68194.0,0.00093946]
[1730071573922,0.81954635,68195.0,68194.0,0.00093946]
[1730071574837,0.95732591,68195.0,68194.0,0.00093946]
[1730071578204,0.95733301,68195.0,68194.0,0.00093946]
[1730071578405,1.10783682,68195.0,68194.0,0.00093946]
[1730071579076,1.10783919,68195.0,68194.0,0.00093946]
[1730071580271,0.95733538,68195.0,68194.0,0.00093946]
[1730071581326,0.82541735,68195.0,68194.0,0.00093946]
[1730071582346,0.95733538,68195.0,68194.0,0.00093946]
[1730071582463,0.82541735,68195.0,68194.0,0.00093946]
[1730071585139,0.95732516,68195.0,68194.0,0.00093946]
[1730071585368,1.10782897,68195.0,68194.0,0.00093946]
[1730071585820,1.10782897,68195.0,68193.0,0.001648]
[1730071585821,0.27464,68194.0,68193.0,4.6e-07]
[1730071586044,0.42514381,68194.0,68193.0,4.6e-07]
[1730071587197,0.43114381,68194.0,68193.0,4.6e-07]
[1730071587404,0.56096293,68194.0,68193.0,4.6e-07]
[1730071587613,0.57096293,68194.0,68193.0,4.6e-07]
[1730071588977,0.87956208,68188.0,68187.0,0.001658]
[1730071589186,0.89766135,68188.0,68187.0,0.001658]
[1730071589419,1.04816516,68188.0,68187.0,0.001658]
[1730071590496,0.90066135,68188.0,68187.0,0.001658]
[1730071590715,0.95080081,68188.0,68187.0,0.001658]
[1730071590917,0.95780081,68188.0,68187.0,0.001658]
[1730071592193,1.03620081,68188.0,68187.0,1e-06]
[1730071593077,1.03320081,68188.0,68187.0,1e-06]
[1730071593294,1.16602127,68188.0,68187.0,1e-06]
[1730071593548,1.18002127,68188.0,68187.0,1e-06]
[1730071595640,1.31190387,68188.0,68187.0,1e-06]
[1730071595886,1.18290288,68188.0,68187.0,1e-06]
[1730071596093,1.05102028,68188.0,68187.0,1e-06]
[1730071596301,0.69997628,68188.0,68187.0,1e-06]
[1730071596521,0.76824828,68188.0,68187.0,1e-06]
[1730071598058,0.94175209,68188.0,68187.0,1e-06]
[1730071599393,1.03467009,68188.0,68187.0,1e-06]
[1730071600092,0.94339809,68188.0,68187.0,1e-06]
[1730071600531,0.98456649,68188.0,68187.0,1e-06]
[1730071602309,1.11645262,68188.0,68187.0,1e-06]
[1730071604258,0.98456649,68188.0,68187.0,1e-06]
[1730071606664,0.83406268,68188.0,68187.0,1e-06]
[1730071607357,0.96601134,68188.0,68187.0,1e-06]
[1730071607562,0.396683,68174.0,68173.0,0.00166]
[1730071607810,0.8236075,68174.0,68173.0,0.22150948]
[1730071608045,0.8236075,68174.0,68173.0,0.00166]
[1730071608281,0.77962721,68174.0,68173.0,0.00166]
[1730071611853,0.82360897,68174.0,68173.0,0.00166]
[1730071612273,0.82360723,68174.0,68173.0,0.00166]
[1730071613132,0.83477173,68174.0,68173.0,0.00166]
[1730071614404,0.79079171,68174.0,68173.0,0.00166]
[1730071615690,0.85676253,68174.0,68173.0,0.00166]
[1730071617512,0.85676253,68174.0,68173.0,0.44171]
[1730071617937,0.85676253,68174.0,68173.0,0.45529036]
[1730071619936,0.85676253,68174.0,68173.0,0.55399036]
[1730071620145,0.65835131,68174.0,68173.0,0.63179036]
[1730071621362,0.79079171,68174.0,68173.0,0.63179036]
[1730071622556,0.74961678,68174.0,68173.0,0.63179036]
[1730071623304,0.65835131,68174.0,68173.0,0.63179036]
[1730071623548,0.65835131,68174.0,68173.0,0.63379036]
[1730071623777,0.65835131,68174.0,68173.0,0.63179036]
[1730071627211,0.74961678,68174.0,68173.0,0.63179036]
[1730071628584,0.81559227,68174.0,68173.0,0.61821]
[1730071628834,0.81559227,68174.0,68173.0,0.63179639]
[1730071629055,0.74961678,68174.0,68173.0,0.63179639]
[1730071629267,0.81559227,68174.0,68173.0,0.63179639]
[1730071630153,0.7243268,68174.0,68173.0,0.63179639]
[1730071630382,0.81559227,68174.0,68173.0,0.63179639]
[1730071631443,0.74961678,68174.0,68173.0,0.63179639]
[1730071633147,0.74961678,68174.0,68173.0,0.45529639]
[1730071633488,0.8375841,68174.0,68173.0,0.45529639]
[1730071633947,0.74961678,68174.0,68173.0,0.45529639]
[1730071634262,0.83768776,68174.0,68173.0,0.45529639]
[1730071636427,0.74642229,68174.0,68173.0,0.63579639]
[1730071637117,0.65835131,68174.0,68173.0,0.63579639]
[1730071637579,0.74961678,68174.0,68173.0,0.63579639]
[1730071637758,0.83768776,68174.0,68173.0,0.63579639]
[1730071638414,0.83768776,68174.0,68173.0,0.53739639]
[1730071639093,0.83769531,68174.0,68173.0,0.45529639]
[1730071640187,0.74961678,68174.0,68173.0,0.45529639]
[1730071640391,0.85971035,68174.0,68173.0,0.45529639]
[1730071641607,0.74961678,68174.0,68173.0,0.45529639]
[1730071647447,0.77935565,68174.0,68173.0,0.45529639]
[1730071648505,0.80235565,68174.0,68173.0,0.45529639]
[1730071650447,0.77261678,68174.0,68173.0,0.45529639]
[1730071650660,1.02261678,68174.0,68173.0,0.38921355]
[1730071650877,1.20988225,68174.0,68173.0,0.38921355]
[1730071651087,1.20988225,68174.0,68173.0,0.37562716]
[1730071651309,1.36038606,68174.0,68173.0,0.37562716]
[1730071651513,1.20988225,68174.0,68173.0,0.37562716]
[1730071651690,1.11961678,68174.0,68173.0,0.37562716]
[1730071652435,1.21088225,68174.0,68173.0,0.37562716]
[1730071652871,1.21188225,68174.0,68173.0,0.37562716]
[1730071653077,1.12061678,68174.0,68173.0,0.37562716]
[1730071655142,1.12061678,68174.0,68173.0,0.34614817]
[1730071655363,1.02935131,68174.0,68173.0,0.34614817]
[1730071655581,1.12061678,68174.0,68173.0,0.34614817]
[1730071657391,1.12061678,68174.0,68173.0,0.34697117]
[1730071658561,1.12061678,68174.0,68170.0,1e-06]
[1730071658562,0.274689,68171.0,68170.0,1e-06]
[1730071658792,0.274689,68171.0,68155.0,0.00166]
[1730071658793,0.496722,68156.0,68155.0,0.00166]
[1730071659026,0.82975675,68156.0,68155.0,0.44183]
[1730071659246,0.87377033,68156.0,68155.0,0.44183]
[1730071659472,0.87377033,68156.0,68155.0,0.45609397]
[1730071659934,0.82975675,68156.0,68155.0,0.45609397]
[1730071660183,0.64722581,68156.0,68155.0,0.45609397]
[1730071660481,0.89671573,68156.0,68155.0,0.45609397]
[1730071660707,0.85275675,68156.0,68155.0,0.45609397]
[1730071660923,0.91877712,68156.0,68155.0,0.44183]
[1730071661357,0.89667044,68156.0,68155.0,0.45609397]
[1730071662275,0.85275675,68156.0,68155.0,0.45609397]
[1730071663164,0.86389091,68156.0,68155.0,0.45609397]
[1730071663385,0.86389091,68156.0,68155.0,0.44183]
[1730071666258,0.68135997,68156.0,68155.0,0.44183]
[1730071666478,0.86389091,68156.0,68155.0,0.44183]
[1730071666703,0.86389091,68156.0,68155.0,0.45609397]
[1730071666902,0.86389091,68156.0,68155.0,0.44183]
[1730071667144,0.86389091,68156.0,68155.0,0.45609397]
[1730071672204,0.86889091,68156.0,68155.0,0.45609397]
[1730071672918,0.87389091,68156.0,68155.0,0.45609397]
[1730071677777,0.97059091,68156.0,68155.0,0.30936897]
[1730071678223,0.97059091,68156.0,68155.0,0.295105]
[1730071678684,1.04949091,68156.0,68155.0,0.20707]
[1730071678898,1.04949091,68156.0,68155.0,0.14838]
[1730071679774,1.04449091,68156.0,68155.0,0.001655]
[1730071679987,1.05049091,68156.0,68155.0,0.001655]
[1730071680403,1.20099472,68156.0,68155.0,0.001655]
[1730071680614,0.27473,68152.0,68151.0,0.00166]
[1730071680833,0.60776475,68152.0,68151.0,0.00166]
[1730071681775,0.79763022,68152.0,68151.0,0.00166]
[1730071682005,0.79763022,68152.0,68151.0,1e-06]
[1730071682006,0.75312663,68152.0,68151.0,1e-06]
[1730071682229,0.85686856,68152.0,68151.0,1e-06]
[1730071682453,1.38418103,68152.0,68151.0,1e-06]
[1730071682696,1.38418103,68152.0,68143.0,1e-07]
[1730071682697,1.12727894,68144.0,68143.0,1e-07]
[1730071682924,0.274758,68139.0,68138.0,0.00166]
[1730071683143,0.56413889,68139.0,68138.0,0.00166]
[1730071683365,0.66293889,68139.0,68138.0,0.00166]
[1730071683640,0.769771,68133.0,68132.0,9e-05]
[1730071683865,1.01154028,68133.0,68132.0,9e-05]
[1730071684087,1.01154028,68133.0,68132.0,3.706e-05]
[1730071684325,1.10280575,68133.0,68132.0,3.706e-05]
[1730071684542,1.01154028,68133.0,68132.0,3.706e-05]
[1730071684784,1.1466159,68133.0,68132.0,3.706e-05]
[1730071685234,0.246784,68127.0,68126.0,0.00166]
[1730071685461,0.48855328,68127.0,68126.0,0.00166]
[1730071686393,0.57981875,68127.0,68126.0,0.00166]
[1730071687080,0.60281875,68127.0,68126.0,0.00166]
[1730071687543,0.69637328,68127.0,68126.0,0.00166]
[1730071688728,0.60281875,68127.0,68126.0,0.00166]
[1730071689898,0.61367603,68127.0,68126.0,0.00166]
[1730071690127,0.61867603,68127.0,68126.0,0.00166]
[1730071691582,0.62267603,68127.0,68126.0,0.00166]
[1730071692029,0.62667603,68127.0,68126.0,0.00166]
[1730071693171,0.77717984,68127.0,68126.0,0.00166]
[1730071693640,0.62667603,68127.0,68126.0,0.00166]
[1730071694146,0.44414509,68127.0,68126.0,0.00166]
[1730071694378,0.53541056,68127.0,68126.0,0.00166]
[1730071694589,0.53141056,68127.0,68126.0,0.00166]
[1730071694795,0.52741056,68127.0,68126.0,0.00166]
[1730071695007,0.53341056,68127.0,68126.0,0.00166]
[1730071695230,0.62167603,68127.0,68126.0,0.00166]
[1730071695650,0.61967603,68127.0,68126.0,0.00166]
[1730071696539,0.52841056,68127.0,68126.0,0.00166]
[1730071697001,0.52741056,68127.0,68126.0,0.00166]
[1730071697483,0.53341056,68127.0,68126.0,0.00166]
[1730071697710,0.53441056,68127.0,68126.0,0.00166]
[1730071697948,0.53341056,68127.0,68126.0,0.00166]
[1730071698172,0.62467603,68127.0,68126.0,0.00166]
[1730071698406,0.63067603,68127.0,68126.0,0.00166]
[1730071698861,0.53941056,68127.0,68126.0,0.00166]
[1730071699400,0.63067603,68127.0,68126.0,0.00166]
[1730071699856,0.78117984,68127.0,68126.0,0.00166]
[1730071701007,0.78705684,68127.0,68126.0,0.00166]
[1730071701215,0.774786,68126.0,68125.0,0.00083]
[1730071701442,0.92528981,68126.0,68125.0,0.00083]
[1730071701651,1.07579362,68126.0,68125.0,0.00083]
[1730071702309,1.08079362,68126.0,68125.0,0.00083]
[1730071702889,1.08079362,68126.0,68124.0,0.00083]
[1730071702890,0.274788,68125.0,68124.0,0.00083]
[1730071703097,0.42529181,68125.0,68124.0,0.00083]
[1730071704285,0.42929181,68125.0,68124.0,0.00083]
[1730071704484,0.45204906,68125.0,68124.0,0.00083]
[1730071704912,0.501801,68119.0,68118.0,0.00083]
[1730071705116,0.76657028,68119.0,68118.0,0.00083]
[1730071705737,0.86257028,68119.0,68118.0,0.00083]
[1730071706391,0.86657028,68119.0,68118.0,0.00083]
[1730071707057,0.87057028,68119.0,68118.0,0.00083]
[1730071708984,0.25,68108.0,68104.0,0.00083]
[1730071709259,0.60786675,68105.0,68104.0,0.00083]
[1730071709503,0.60786675,68105.0,68096.0,0.0773]
[1730071709504,0.64684,68101.0,68096.0,0.0773]
[1730071709710,1.01160928,68101.0,68096.0,0.0773]
[1730071710166,0.67034381,68101.0,68096.0,0.0773]
[1730071710371,0.64734381,68101.0,68100.0,0.09129]
[1730071710604,0.64734381,68101.0,68100.0,0.17229]
[1730071712577,0.64734381,68101.0,68100.0,0.08119]
[1730071712791,0.79784762,68101.0,68100.0,0.08119]
[1730071713208,0.67034381,68101.0,68100.0,0.08119]
[1730071715924,0.80305489,68101.0,68100.0,0.08119]
[1730071716487,0.80705489,68101.0,68100.0,0.00019]
[1730071716925,0.80305489,68101.0,68100.0,0.00019]
[1730071717357,0.93576597,68101.0,68100.0,0.00019]
[1730071717559,1.08626978,68101.0,68100.0,0.001014]
[1730071718207,1.02956597,68101.0,68100.0,0.001014]
[1730071719241,0.93876597,68101.0,68100.0,0.001014]
[1730071719467,0.94376597,68101.0,68100.0,0.001014]
[1730071719678,0.94076597,68101.0,68100.0,0.001014]
[1730071719887,0.94476597,68101.0,68100.0,0.001014]
[1730071720094,1.09926978,68101.0,68100.0,1e-06]
[1730071720312,0.81605489,68101.0,68100.0,1e-06]
[1730071721338,0.94876597,68101.0,68100.0,1e-06]
[1730071721986,1.16861545,68101.0,68100.0,1e-06]
[1730071722195,1.19876597,68101.0,68100.0,1e-06]
[1730071722423,1.34926978,68101.0,68100.0,1e-06]
[1730071722653,1.43166978,68101.0,68100.0,1e-06]
[1730071723512,1.43166978,68101.0,68086.0,0.00083]
[1730071723513,0.51987,68087.0,68086.0,0.00083]
[1730071723737,0.67037381,68087.0,68086.0,0.00083]
[1730071723953,0.67537381,68087.0,68086.0,0.00083]
[1730071724893,0.80808489,68087.0,68086.0,0.00083]
[1730071725344,0.9585887,68087.0,68086.0,0.00083]
[1730071725509,0.80808489,68087.0,68086.0,0.00083]
[1730071726144,0.81913229,68087.0,68086.0,0.00083]
[1730071727112,0.68142121,68087.0,68086.0,0.07893]
[1730071727316,0.58142121,68087.0,68086.0,0.07893]
[1730071727521,0.71413229,68087.0,68086.0,0.07893]
[1730071728172,0.70308489,68087.0,68086.0,0.07893]
[1730071728582,0.80308489,68087.0,68086.0,0.07893]
[1730071732354,0.64737381,68087.0,68086.0,0.07893]
[1730071732789,0.78008489,68087.0,68086.0,0.07893]
[1730071733238,0.64737381,68087.0,68086.0,0.07893]
[1730071733447,0.15050381,68087.0,68086.0,0.18033]
[1730071733676,0.15050381,68087.0,68086.0,0.18492672]
[1730071733906,0.15050381,68087.0,68086.0,0.19681444]
[1730071734145,0.293713,68094.0,68093.0,0.012]
[1730071734146,0.146855,68094.0,68093.0,0.012]
[1730071734394,0.29735881,68094.0,68093.0,0.012]
[1730071734611,0.29735881,68094.0,68093.0,0.1854]
[1730071735487,0.29735881,68094.0,68093.0,0.63779579]
[1730071735717,0.25050381,68094.0,68093.0,0.63779579]
[1730071736170,0.39735881,68094.0,68093.0,0.63779579]
[1730071736570,0.39735881,68094.0,68093.0,0.63879579]
[1730071741023,0.25050381,68094.0,68093.0,0.63879579]
[1730071741236,0.25050381,68094.0,68093.0,0.64339185]
[1730071741449,0.39735881,68094.0,68093.0,0.64339185]
[1730071742330,0.39735881,68094.0,68093.0,0.63879579]
[1730071746885,0.25050381,68094.0,68093.0,0.63879579]
[1730071747113,0.39735881,68094.0,68093.0,0.63879579]
[1730071747774,0.25050381,68094.0,68093.0,0.63879579]
[1730071748001,0.39735881,68094.0,68093.0,0.63879579]
[1730071749858,0.29735881,68094.0,68093.0,0.63879579]
[1730071753098,0.29735881,68094.0,68093.0,0.63961979]
[1730071753326,0.29735881,68094.0,68093.0,0.54781979]
[1730071757810,0.29735881,68094.0,68093.0,0.46421979]
[1730071759120,0.29735881,68094.0,68093.0,0.46621979]
[1730071760780,0.29735881,68094.0,68093.0,0.46121979]
[1730071760990,0.29735881,68094.0,68093.0,0.46621979]
[1730071761219,0.29735881,68094.0,68093.0,0.46421979]
[1730071762045,0.29735881,68094.0,68093.0,0.46621979]
[1730071762261,0.29735881,68094.0,68093.0,0.46521979]
[1730071763565,0.29735881,68094.0,68093.0,0.46621979]
[1730071764644,0.29735881,68094.0,68093.0,0.46121979]
[1730071764856,0.29735881,68094.0,68093.0,0.45921979]
[1730071765323,0.29735881,68094.0,68093.0,0.46621979]
[1730071766352,0.29735881,68094.0,68093.0,0.46121979]
[1730071767854,0.29735881,68094.0,68093.0,0.46121979]
[1730071781421,0.29735881,68094.0,68093.0,0.46581608]
[1730071788205,0.29735881,68094.0,68093.0,0.47081608]
[1730071788727,0.29735881,68094.0,68093.0,0.46621979]
[1730071788948,0.29735881,68094.0,68093.0,0.47081592]
[1730071792570,0.29735881,68094.0,68093.0,0.47081591]
[1730071795822,0.29735881,68094.0,68093.0,0.46971861]
[1730071796385,0.29735881,68094.0,68093.0,0.46512249]
[1730071796608,0.29735881,68094.0,68093.0,0.46971861]
[1730071797273,0.17435881,68094.0,68093.0,0.46971861]
[1730071798594,0.17435881,68094.0,68093.0,0.46512249]
[1730071798820,0.17435881,68094.0,68093.0,0.46971861]
[1730071800346,0.27435881,68094.0,68093.0,0.46512249]
[1730071800566,0.27435881,68094.0,68093.0,0.46271871]
[1730071800815,0.37385881,68094.0,68093.0,0.45812249]
[1730071801026,0.37385881,68094.0,68093.0,0.45421979]
[1730071801522,0.37385881,68094.0,68093.0,0.45321979]
[1730071801956,0.37385881,68094.0,68093.0,0.45421979]
[1730071803099,0.37385881,68094.0,68093.0,0.45812249]
[1730071803539,0.37385881,68094.0,68093.0,0.45421979]
[1730071804191,0.37385881,68094.0,68093.0,0.45812249]
[1730071804649,0.59370829,68094.0,68093.0,0.45421979]
[1730071804886,0.37385881,68094.0,68093.0,0.45421979]
[1730071805354,0.27435881,68094.0,68093.0,0.45812249]
[1730071805574,0.27435881,68094.0,68093.0,0.46012249]
[1730071806501,0.27435881,68094.0,68093.0,0.45912249]
[1730071806930,0.27435881,68094.0,68093.0,0.46012249]
[1730071807150,0.27435881,68094.0,68093.0,0.45912249]
[1730071807409,0.27435881,68094.0,68093.0,0.63982249]
[1730071807811,0.27435881,68094.0,68093.0,0.64082249]
[1730071808691,0.27435881,68094.0,68093.0,0.64541865]
[1730071808925,0.246855,68094.0,68093.0,0.64541865]
[1730071813162,0.146855,68094.0,68093.0,0.64541865]
[1730071814334,0.146855,68094.0,68093.0,0.73687356]
[1730071814999,0.146855,68094.0,68093.0,0.73687329]
[1730071815237,0.03,68095.0,68094.0,0.0159027]
[1730071815450,0.32247808,68100.0,68099.0,0.0089027]
[1730071815659,0.46833948,68100.0,68099.0,0.45603859]
[1730071816094,0.24849,68100.0,68099.0,0.45603859]
[1730071816769,0.24849,68100.0,68099.0,0.45703859]
[1730071817435,0.24849,68100.0,68099.0,0.46915395]
[1730071818383,0.24849,68100.0,68099.0,0.46555806]
[1730071818636,0.001648,68100.0,68099.0,0.56245346]
[1730071818855,0.001648,68100.0,68099.0,0.66590602]
[1730071819067,0.001648,68100.0,68099.0,0.66790602]
[1730071819297,0.001648,68100.0,68099.0,0.81475102]
[1730071819739,0.001648,68100.0,68099.0,0.66790602]
[1730071820193,0.001648,68100.0,68099.0,0.81475043]
[1730071821321,0.001648,68100.0,68099.0,0.66790543]
[1730071821534,0.001648,68100.0,68099.0,0.66590543]
[1730071821535,0.14849,68100.0,68099.0,0.66590543]
[1730071823122,0.14849,68100.0,68099.0,0.55780543]
[1730071823349,0.14849,68100.0,68099.0,0.5454532]
[1730071824710,0.24849,68100.0,68099.0,0.46355806]
[1730071824921,0.24849,68100.0,68099.0,0.46455806]
[1730071824922,0.39899381,68100.0,68099.0,0.46455806]
[1730071825128,0.39899381,68100.0,68099.0,0.45955806]
[1730071825355,0.39899381,68100.0,68099.0,0.46055806]
[1730071825356,0.48989381,68100.0,68099.0,0.46055806]
[1730071825814,0.48989381,68100.0,68099.0,0.45955806]
[1730071826487,0.48989381,68100.0,68099.0,0.46055806]
[1730071826928,0.48989381,68100.0,68099.0,0.45955806]
[1730071827617,0.48989381,68100.0,68099.0,0.45855806]
[1730071827842,0.48989381,68100.0,68099.0,0.45955806]
[1730071828067,0.48989381,68100.0,68099.0,0.46055806]
[1730071828293,0.48989381,68100.0,68099.0,0.45855806]
[1730071828511,0.48989381,68100.0,68099.0,0.45755806]
[1730071828735,0.48989381,68100.0,68099.0,0.45855806]
[1730071829160,0.48989381,68100.0,68099.0,0.45755806]
[1730071829377,0.48989381,68100.0,68099.0,0.45655806]
[1730071829816,0.48989381,68100.0,68099.0,0.45955806]
[1730071830035,0.39899381,68100.0,68099.0,0.45855806]
[1730071830475,0.39899381,68100.0,68099.0,0.45955806]
[1730071831141,0.39899381,68100.0,68099.0,0.46455806]
[1730071831358,0.39899381,68100.0,68099.0,0.46555806]
[1730071831809,0.39899381,68100.0,68099.0,0.46455806]
[1730071832257,0.39899381,68100.0,68099.0,0.46555806]
[1730071839751,0.24849,68100.0,68099.0,0.55701297]
[1730071839970,0.24849,68100.0,68099.0,0.46555806]
[1730071840778,0.24849,68100.0,68099.0,0.47015363]
[1730071841416,0.24849,68100.0,68099.0,0.47015349]
[1730071842226,0.24849,68100.0,68099.0,0.46555806]
[1730071846116,0.39899381,68100.0,68099.0,0.46555806]
[1730071846328,0.39899381,68100.0,68099.0,0.45855806]
[1730071846534,0.49499381,68100.0,68099.0,0.46055806]
[1730071848363,0.49499381,68100.0,68099.0,0.45855806]
[1730071848727,0.49499381,68100.0,68099.0,0.46055806]
[1730071849193,0.49499381,68100.0,68099.0,0.45955806]
[1730071849416,0.49499381,68100.0,68099.0,0.45855806]
[1730071849634,0.50575794,68100.0,68099.0,0.46055806]
[1730071849849,0.50575794,68100.0,68099.0,0.45955806]
[1730071849971,0.50539486,68100.0,68099.0,0.45955806]
[1730071850391,0.50539486,68100.0,68099.0,0.46055806]
[1730071853389,0.39863073,68100.0,68099.0,0.46055806]
[1730071853594,0.39863073,68100.0,68099.0,0.46555806]
[1730071854220,0.24812692,68100.0,68099.0,0.46555806]
[1730071861715,0.24812692,68100.0,68099.0,0.72361297]
[1730071861951,0.24812692,68100.0,68099.0,0.72820865]
[1730071862177,0.10128492,68100.0,68099.0,0.63675374]
[1730071862398,0.24812692,68100.0,68099.0,0.64175374]
[1730071862612,0.10128492,68100.0,68099.0,0.73320865]
[1730071863057,0.24812692,68100.0,68099.0,0.74056131]
[1730071863268,0.10128492,68100.0,68099.0,0.74056131]
[1730071863501,0.00128492,68100.0,68099.0,0.73956128]
[1730071863756,0.00128492,68100.0,68099.0,0.74056128]
[1730071863993,0.00128492,68100.0,68099.0,0.73956128]
[1730071864656,0.00128492,68100.0,68099.0,0.77974944]
[1730071864873,0.14812692,68100.0,68099.0,0.77974944]
[1730071865094,0.00128492,68100.0,68099.0,0.78074944]
[1730071865329,0.00128492,68100.0,68099.0,0.77339681]
[1730071865539,0.00128492,68100.0,68099.0,0.77239681]
[1730071865964,0.00128492,68100.0,68099.0,0.77339681]
[1730071866655,0.14812692,68100.0,68099.0,0.77339681]
[1730071866873,0.00128492,68100.0,68099.0,0.77339681]
[1730071867119,0.00128492,68100.0,68099.0,0.78339681]
[1730071867353,0.00128492,68100.0,68099.0,0.93959437]
[1730071867575,0.00128492,68100.0,68099.0,0.79274874]
[1730071868515,0.00128492,68100.0,68099.0,0.79074874]
[1730071869164,0.00128492,68100.0,68099.0,0.79274874]
[1730071873000,0.00128492,68100.0,68099.0,0.79074874]
[1730071875507,0.00128492,68100.0,68099.0,0.79074855]
[1730071875987,0.00128492,68100.0,68099.0,0.79274855]
[1730071876678,0.00128492,68100.0,68099.0,0.93959355]
[1730071877848,0.00128492,68100.0,68099.0,0.94418855]
[1730071878578,0.00128492,68100.0,68099.0,0.98899985]
[1730071878805,0.00128492,68100.0,68099.0,0.98440485]
[1730071879018,0.00128492,68100.0,68099.0,0.9889997]
[1730071879543,0.00128492,68100.0,68099.0,0.9450114]
[1730071882290,0.00128492,68100.0,68099.0,0.98898408]
[1730071882509,0.00128492,68100.0,68099.0,0.9450114]
[1730071883644,0.00128492,68100.0,68099.0,0.98898408]
[1730071883876,0.00128492,68100.0,68099.0,0.98698408]
[1730071884339,0.00128492,68100.0,68099.0,0.9430114]
[1730071884578,0.00128492,68100.0,68099.0,0.90176184]
[1730071885008,0.00128492,68100.0,68099.0,0.94573452]
[1730071885233,0.00128492,68100.0,68099.0,0.94773452]
[1730071885447,0.00128492,68100.0,68099.0,0.90376184]
[1730071885670,0.00128492,68100.0,68099.0,0.94773452]
[1730071887543,0.00128492,68100.0,68099.0,0.90376184]
[1730071890579,0.00128492,68100.0,68099.0,0.91477462]
[1730071892146,0.00128492,68100.0,68099.0,0.9587473]
[1730071894834,0.00128492,68100.0,68099.0,0.95874973]
[1730071895290,0.00128492,68100.0,68099.0,0.91477705]
[1730071897339,0.00128492,68100.0,68099.0,1.14311501]
[1730071897594,0.00128492,68100.0,68099.0,1.14311415]
[1730071897819,0.00128492,68100.0,68099.0,1.14311693]
[1730071898277,0.00128492,68100.0,68099.0,1.07715791]
[1730071899224,0.00128492,68100.0,68099.0,1.16510328]
[1730071901197,0.00128492,68100.0,68099.0,1.13754388]
[1730071901435,0.00128492,68100.0,68099.0,1.16510487]
[1730071901680,0.00128492,68100.0,68099.0,1.1652735]
[1730071902372,0.00128492,68100.0,68099.0,1.07724853]
[1730071903298,0.00128492,68100.0,68099.0,1.18727975]
[1730071903759,0.00128492,68100.0,68099.0,1.04043475]
[1730071904962,0.00128492,68100.0,68099.0,1.03943475]
[1730071905184,0.00128492,68100.0,68099.0,1.18727975]
[1730071905396,0.00128492,68100.0,68099.0,1.07524853]
[1730071905606,0.00128492,68100.0,68099.0,0.92840353]
[1730071906253,0.00128492,68100.0,68099.0,1.07724853]
[1730071906483,0.00128492,68100.0,68099.0,1.07736553]
[1730071908086,0.00128492,68100.0,68099.0,1.07536553]
[1730071908312,0.00128492,68100.0,68099.0,1.0643459]
[1730071908545,0.00128492,68100.0,68099.0,1.04780454]
[1730071908793,0.00128492,68100.0,68099.0,1.07537263]
[1730071909979,0.00128492,68100.0,68099.0,1.07737263]
[1730071912383,0.00128492,68100.0,68099.0,0.93052763]
[1730071912622,0.00128492,68100.0,68099.0,0.83713412]
[1730071913254,0.00128492,68100.0,68099.0,0.83913412]
[1730071913694,0.00128492,68100.0,68099.0,0.98597912]
[1730071914159,0.00128492,68100.0,68099.0,0.74913412]